fUSD/lending_fUSD_20240608
["ID","MTS","AMOUNT","RATE_DAILY","PERIOD"]
[328827749,1717849839234,-151.0,0.00029,7]
[328827750,1717849839245,-151.0,0.00029,7]
[328827751,1717849839255,-151.0,0.00029,7]
[328827752,1717849839265,-151.0,0.00029,7]
[328827753,1717849839276,-151.0,0.00029,7]
[328827754,1717849839287,-151.0,0.00029,7]
[328827755,1717849839298,-151.0,0.00029,7]
[328827756,1717849839309,-151.0,0.00029,7]
[328827757,1717849839319,-151.0,0.00029,7]
[328827758,1717849839329,-151.0,0.00029,7]
[328827759,1717849839339,-154.224481,0.00029,7]
[328827760,1717849839349,-151.0,0.00029,7]
[328827761,1717849839359,-350.0,0.00029,2]
[328827762,1717849839370,-151.0,0.00029,7]
[328827763,1717849839380,-151.0,0.00029,7]
[328827764,1717849839391,-151.0,0.00029,7]
[328827765,1717849839401,-151.0,0.00029,7]
[328827766,1717849839411,-188.586759,0.00029,7]
[328827767,1717849839422,-151.0,0.00029,7]
[328827768,1717849839432,-151.0,0.00029,7]
[328827769,1717849839442,-151.0,0.00029,7]
[328827770,1717849839452,-151.0,0.00029,7]
[328827771,1717849839463,-151.0,0.00029,7]
[328827772,1717849839472,-151.0,0.00029,7]
[328827773,1717849839483,-151.0,0.00029,7]
[328827774,1717849839492,-151.0,0.00029,7]
[328827775,1717849839502,-151.0,0.00029,7]
[328827776,1717849839512,-151.0,0.00029,7]
[328827777,1717849839522,-155.914056,0.00029,7]
[328827778,1717849839533,-275.3841,0.00029,7]
[328827779,1717849839543,-167.369112,0.00029,7]
[328827780,1717849839553,-275.3841,0.00029,7]
[328827781,1717849839563,-161.198709,0.00029,7]
[328827782,1717849839573,-167.369112,0.00029,7]
[328827783,1717849839583,-161.198709,0.00029,7]
[328827784,1717849839593,-150.0,0.00029,6]
[328827785,1717849839604,-151.0,0.00029,7]
[328827786,1717849839615,-151.0,0.00029,7]
[328827787,1717849839625,-151.0,0.00029,7]
[328827788,1717849839635,-970.91987,0.00029,7]
[328827789,1717849839645,-970.91987,0.00029,7]
[328827790,1717849839656,-151.0,0.00029,7]
[328827791,1717849839667,-151.0,0.00029,7]
[328827792,1717849839677,-418.24310424,0.00029,2]
[328827793,1717849839687,-418.24310424,0.00029,2]
[328827794,1717849839697,-418.24310424,0.00029,2]
[328827795,1717849839707,-151.0,0.00029,7]
[328827796,1717849839717,-151.0,0.00029,7]
[328827797,1717849839727,-151.0,0.00029,7]
[328827798,1717849839738,-151.0,0.00029,7]
[328827799,1717849839749,-664.67,0.00029041,2]
[328827800,1717849839759,-3435.59720396,0.00029082,2]
[328827801,1717849839769,-1644.85955,0.0002911,2]
[328827802,1717849839779,-152.69617973,0.00029146,2]
[328827803,1717849839789,-171.375081,0.00029147,2]
[328827804,1717849839799,-4061.565309,0.00029147,2]
[328827805,1717849839810,-234.11323,0.00029147,2]
[328827806,1717849839820,-4958.359459,0.00029147,2]
[328827807,1717849839831,-199.051646,0.00029147,2]
[328827808,1717849839841,-4912.730879,0.00029147,2]
[328827809,1717849839851,-3435.59720396,0.00029173,2]
[328827810,1717849839863,-5000.0,0.00029216,2]
[328827811,1717849839876,-25650.8,0.0002925,10]
[328827812,1717849839887,-155.44046622,0.00029257,2]
[328827813,1717849839897,-3435.59720396,0.00029264,2]
[328827814,1717849839909,-3435.59720396,0.00029355,2]
[328827815,1717849839919,-152.69617973,0.00029368,2]
[328827816,1717849839930,-500.0,0.000294,2]
[328827817,1717849839940,-152.69617973,0.00029415,2]
[328827818,1717849839952,-151.0,0.00029445,7]
[328827819,1717849839963,-151.0,0.00029445,7]
[328827820,1717849839973,-154.638212,0.00029445,7]
[328827821,1717849839983,-232.248389,0.00029445,7]
[328827822,1717849839992,-158.303826,0.00029445,7]
[328827823,1717849840002,-151.0,0.00029445,7]
[328827824,1717849840012,-154.946185,0.00029445,7]
[328827825,1717849840022,-151.0,0.00029445,7]
[328827826,1717849840033,-151.0,0.00029445,7]
[328827827,1717849840042,-151.0,0.00029445,7]
[328827828,1717849840052,-151.0,0.00029445,7]
[328827829,1717849840062,-151.0,0.00029445,7]
[328827830,1717849840072,-3435.59720396,0.00029445,2]
[328827831,1717849840082,-5000.0,0.00029457,2]
[328827832,1717849840102,-8252.59167054,0.00029465,2]
[328827833,1717849840112,-5000.0,0.00029465,2]
[328827834,1717849840123,-5000.0,0.00029465,2]
[328827835,1717849840133,-5000.0,0.00029465,2]
[328827836,1717849840143,-5000.0,0.00029465,2]
[328827837,1717849840154,-155.44046622,0.00029471,2]
[328827838,1717849840164,-1000.0,0.0002949,2]
[328827839,1717849840175,-885.338087,0.000295,2]
[328827840,1717849840185,-357.27440379,0.000295,4]
[328827841,1717849840195,-500.0,0.000295,2]
[328827842,1717849840206,-500.0,0.000295,2]
[328827843,1717849840216,-500.0,0.000295,2]
[328827844,1717849840227,-500.0,0.000295,2]
[328827845,1717849840238,-3816.0,0.000295,2]
[328827846,1717849840248,-3816.0,0.000295,2]
[328827847,1717849840258,-3816.0,0.000295,2]
[328827848,1717849840269,-3816.0,0.000295,2]
[328827849,1717849840280,-3816.0,0.000295,2]
[328827850,1717849840291,-3816.0,0.000295,2]
[328827851,1717849840302,-3816.0,0.000295,2]
[328827852,1717849840313,-3816.0,0.000295,2]
[328827853,1717849840324,-3816.0,0.000295,2]
[328827854,1717849840335,-3816.0,0.000295,2]
[328827855,1717849840345,-150.0,0.000295,6]
[328827856,1717849840357,-3435.59720396,0.00029536,2]
[328827857,1717849840367,-171.1391301,0.00029546,2]
[328827858,1717849840378,-544.55,0.00029589,4]
[328827859,1717849840389,-544.55,0.00029589,4]
[328827860,1717849840400,-544.55,0.00029589,4]
[328827861,1717849840410,-544.55,0.00029589,4]
[328827862,1717849840421,-544.55,0.00029589,4]
[328827863,1717849840431,-839.38,0.00029589,4]
[328827864,1717849840442,-839.38,0.00029589,4]
[328827865,1717849840452,-839.38,0.00029589,4]
[328827866,1717849840462,-839.38,0.00029589,4]
[328827867,1717849840472,-839.38,0.00029589,4]
[328827868,1717849840482,-5000.0,0.00029591,2]
[328827869,1717849840493,-1328.007131,0.000296,2]
[328827870,1717849840504,-500.0,0.000296,2]
[328827871,1717849840515,-3435.59720396,0.00029627,2]
[328827872,1717849840526,-10002.3294022,0.00029683,7]
[328827873,1717849840536,-161.70060144,0.0002969,2]
[328827874,1717849840547,-6799.05034124,0.0002969,2]
[328827875,1717849840558,-5905.06477138,0.0002969,2]
[328827876,1717849840568,-733.90914636,0.0002969,2]
[328827877,1717849840579,-6799.05034123,0.00029695,2]
[328827878,1717849840589,-5905.06477136,0.00029695,2]
[328827879,1717849840599,-733.90914635,0.00029695,2]
[328827880,1717849840609,-544.55,0.00029699,4]
[328827881,1717849840619,-544.55,0.00029699,4]
[328827882,1717849840629,-839.38,0.00029699,4]
[328827883,1717849840640,-839.38,0.00029699,4]
[328827884,1717849840650,-1770.676175,0.000297,2]
[328827886,1717849840660,-386.9,0.000297,2]
[328827887,1717849840670,-2878.0327,0.000297,2]
[328827889,1717849840680,-4000.0,0.000297,2]
[328827891,1717849840690,-158075.2713388,0.000297,2]
[328827893,1717849840700,-75244.00284258,0.000297,2]
[328827896,1717849840951,-345.0,0.00027887,5]
[328827897,1717849840961,-313.999999,0.000297,2]
[328827898,1717849841095,-427.358,0.0002533,2]
[328827899,1717849841106,-3219.21286215,0.000297,2]
[328827900,1717849841116,-4000.0,0.000297,2]
[328827901,1717849841126,-151.0,0.000297,7]
[328827902,1717849841136,-151.616516,0.000297,7]
[328827903,1717849841145,-151.0,0.000297,7]
[328827904,1717849841155,-151.0,0.000297,7]
[328827905,1717849841165,-296.615912,0.000297,7]
[328827906,1717849841175,-151.0,0.000297,7]
[328827907,1717849841186,-295.040948,0.000297,7]
[328827908,1717849841195,-151.0,0.000297,7]
[328827909,1717849841205,-151.0,0.000297,7]
[328827910,1717849841214,-151.0,0.000297,7]
[328827911,1717849841224,-158.3319,0.000297,7]
[328827912,1717849841233,-151.0,0.000297,7]
[328827913,1717849841243,-274.30054,0.000297,7]
[328827914,1717849841253,-151.0,0.000297,7]
[328827915,1717849841263,-238.235126,0.000297,7]
[328827916,1717849841273,-151.0,0.000297,7]
[328827917,1717849841284,-151.0,0.000297,7]
[328827918,1717849841294,-273.608464,0.000297,7]
[328827919,1717849841304,-273.608464,0.000297,7]
[328827920,1717849841314,-273.608464,0.000297,7]
[328827921,1717849841324,-273.608464,0.000297,7]
[328827922,1717849841334,-151.0,0.000297,7]
[328827923,1717849841344,-151.0,0.000297,7]
[328827924,1717849841354,-151.0,0.000297,7]
[328827925,1717849841364,-151.0,0.000297,7]
[328827926,1717849841374,-151.0,0.000297,7]
[328827927,1717849841384,-151.0,0.000297,7]
[328827928,1717849841395,-151.0,0.000297,7]
[328827929,1717849841405,-151.0,0.000297,7]
[328827930,1717849841415,-151.0,0.000297,7]
[328827931,1717849841424,-151.0,0.000297,7]
[328827932,1717849841434,-151.0,0.000297,7]
[328827933,1717849841443,-153.789503,0.000297,7]
[328827934,1717849841453,-151.0,0.000297,7]
[328827935,1717849841463,-151.0,0.000297,7]
[328827936,1717849841475,-151.0,0.000297,7]
[328827937,1717849841485,-151.0,0.000297,7]
[328827938,1717849841495,-109.47736671,0.000297,7]
[328827939,1717849841766,-151.0,0.00029,7]
[328827940,1717849841777,-41.52263329,0.000297,7]
[328827941,1717849841787,-111.2641392,0.000297,7]
[328827942,1717849841801,-39.7358608,0.000297,7]
[328827943,1717849841811,-157.266076,0.000297,7]
[328827944,1717849841821,-151.0,0.000297,7]
[328827945,1717849841832,-151.0,0.000297,7]
[328827946,1717849841842,-151.0,0.000297,7]
[328827947,1717849841852,-151.0,0.000297,7]
[328827948,1717849841863,-151.0,0.000297,7]
[328827949,1717849841874,-151.0,0.000297,7]
[328827950,1717849841884,-151.0,0.000297,7]
[328827951,1717849841894,-176.31249808,0.000297,2]
[328827952,1717849841904,-151.0,0.000297,7]
[328827953,1717849841915,-110.86343112,0.000297,7]
[328827954,1717849841930,-40.13656888,0.000297,7]
[328827955,1717849841940,-151.0,0.000297,7]
[328827956,1717849841952,-151.0,0.000297,7]
[328827957,1717849841963,-151.0,0.000297,7]
[328827958,1717849841973,-151.0,0.000297,7]
[328827959,1717849841983,-151.0,0.000297,7]
[328827960,1717849841994,-151.0,0.000297,7]
[328827961,1717849842003,-151.0,0.000297,7]
[328827962,1717849842014,-151.0,0.000297,7]
[328827963,1717849842024,-151.0,0.000297,7]
[328827964,1717849842034,-151.0,0.000297,7]
[328827965,1717849842044,-151.0,0.000297,7]
[328827966,1717849842054,-151.0,0.000297,7]
[328827967,1717849842064,-151.4579,0.000297,7]
[328827968,1717849842075,-151.0,0.000297,7]
[328827969,1717849842085,-152.00596964,0.000297,7]
[328827970,1717849842098,-824.89408993,0.000297,7]
[328827971,1717849842108,-387.25547007,0.000297,7]
[328827972,1717849842159,-589.6445895,0.000297,7]
[328827973,1717849842169,-976.90005957,0.000297,7]
[328827974,1717849842180,-976.90005957,0.000297,7]
[328827975,1717849842190,-976.90005957,0.000297,7]
[328827976,1717849842200,-976.90005957,0.000297,7]
[328827977,1717849842210,-976.90005957,0.000297,7]
[328827978,1717849842221,-976.90005957,0.000297,7]
[328827979,1717849842232,-976.90005957,0.000297,7]
[328827980,1717849842242,-976.90005957,0.000297,7]
[328827981,1717849842252,-976.90005957,0.000297,7]
[328827982,1717849842263,-976.90005957,0.000297,7]
[328827983,1717849842273,-976.90005957,0.000297,7]
[328827984,1717849842284,-976.90005957,0.000297,7]
[328827985,1717849842294,-976.90005957,0.000297,7]
[328827986,1717849842304,-976.90005957,0.000297,7]
[328827987,1717849842314,-976.90005957,0.000297,7]
[328827988,1717849842324,-976.90005957,0.000297,7]
[328827989,1717849842334,-976.90005957,0.000297,7]
[328827990,1717849842345,-977.4,0.000297,7]
[328827991,1717849842355,-3907.67523827,0.000297,7]
[328827993,1717849842365,-3907.67523827,0.000297,7]
[328827995,1717849842375,-3907.67523827,0.000297,7]
[328827997,1717849842385,-3907.67523827,0.000297,7]
[328827998,1717849842396,-3907.67523827,0.000297,7]
[328827999,1717849842406,-3907.67523827,0.000297,7]
[328828000,1717849842417,-3907.67523827,0.000297,7]
[328828001,1717849842427,-3907.67523827,0.000297,7]
[328828002,1717849842438,-3907.67523827,0.000297,7]
[328828003,1717849842448,-3907.67523827,0.000297,7]
[328828004,1717849842458,-3907.67523827,0.000297,7]
[328828005,1717849842469,-3907.67523827,0.000297,7]
[328828006,1717849842479,-3907.67523827,0.000297,7]
[328828007,1717849842489,-3907.67523827,0.000297,7]
[328828008,1717849842500,-3907.67523827,0.000297,7]
[328828009,1717849842510,-3907.67523827,0.000297,7]
[328828010,1717849842520,-275.3841,0.000297,7]
[328828011,1717849842532,-3907.67523827,0.000297,7]
[328828012,1717849842542,-167.369112,0.000297,7]
[328828013,1717849842551,-275.3841,0.000297,7]
[328828014,1717849842561,-167.369112,0.000297,7]
[328828015,1717849842572,-3907.67523827,0.000297,7]
[328828016,1717849842582,-275.3841,0.000297,7]
[328828017,1717849842592,-167.369112,0.000297,7]
[328828018,1717849842602,-3907.67523827,0.000297,7]
[328828019,1717849842613,-276.65,0.000297,7]
[328828020,1717849842623,-158.01987371,0.000297,7]
[328828021,1717849842634,-275.3841,0.000297,7]
[328828022,1717849842644,-158.01987371,0.000297,7]
[328828023,1717849842654,-275.3841,0.000297,7]
[328828024,1717849842664,-161.198709,0.000297,7]
[328828025,1717849842675,-158.01987371,0.000297,7]
[328828026,1717849842686,-275.3841,0.000297,7]
[328828027,1717849842696,-161.198709,0.000297,7]
[328828028,1717849842706,-158.01987371,0.000297,7]
[328828029,1717849842716,-158.01987371,0.000297,7]
[328828030,1717849842727,-158.01987371,0.000297,7]
[328828031,1717849842737,-167.369112,0.000297,7]
[328828032,1717849842747,-167.369112,0.000297,7]
[328828033,1717849842757,-167.369112,0.000297,7]
[328828034,1717849842767,-842.61752345,0.000297,7]
[328828036,1717849842778,-842.61752345,0.000297,7]
[328828038,1717849842788,-842.61752345,0.000297,7]
[328828039,1717849842799,-842.61752345,0.000297,7]
[328828040,1717849842808,-842.61752345,0.000297,7]
[328828041,1717849842818,-842.61752345,0.000297,7]
[328828042,1717849842828,-161.198709,0.000297,7]
[328828043,1717849842839,-842.61752345,0.000297,7]
[328828044,1717849842849,-161.198709,0.000297,7]
[328828045,1717849842862,-842.61752345,0.000297,7]
[328828046,1717849842872,-842.61752345,0.000297,7]
[328828047,1717849842882,-842.61752345,0.000297,7]
[328828048,1717849842892,-842.61752345,0.000297,7]
[328828049,1717849842903,-842.61752345,0.000297,7]
[328828050,1717849842912,-842.61752345,0.000297,7]
[328828051,1717849842922,-842.61752345,0.000297,7]
[328828052,1717849842931,-842.61752345,0.000297,7]
[328828053,1717849842942,-842.61752345,0.000297,7]
[328828054,1717849842952,-842.61752345,0.000297,7]
[328828055,1717849842962,-842.61752345,0.000297,7]
[328828056,1717849842972,-842.61752345,0.000297,7]
[328828057,1717849842982,-843.11,0.000297,7]
[328828058,1717849842992,-3370.54509378,0.000297,7]
[328828059,1717849843002,-3370.54509378,0.000297,7]
[328828060,1717849843013,-3370.54509378,0.000297,7]
[328828061,1717849843023,-3370.54509378,0.000297,7]
[328828062,1717849843035,-3370.54509378,0.000297,7]
[328828063,1717849843046,-3370.54509378,0.000297,7]
[328828064,1717849843056,-6799.05034123,0.000297,2]
[328828065,1717849843066,-3370.54509378,0.000297,7]
[328828066,1717849843076,-3370.54509378,0.000297,7]
[328828067,1717849843087,-151.0,0.000297,7]
[328828068,1717849843097,-3370.54509378,0.000297,7]
[328828069,1717849843107,-3370.54509378,0.000297,7]
[328828070,1717849843118,-151.0,0.000297,7]
[328828071,1717849843129,-3370.54509378,0.000297,7]
[328828072,1717849843139,-3370.54509378,0.000297,7]
[328828073,1717849843149,-3370.54509378,0.000297,7]
[328828074,1717849843161,-3370.54509378,0.000297,7]
[328828075,1717849843172,-151.0,0.000297,7]
[328828076,1717849843182,-3370.54509378,0.000297,7]
[328828077,1717849843192,-151.0,0.000297,7]
[328828078,1717849843202,-3370.54509378,0.000297,7]
[328828079,1717849843212,-3370.54509378,0.000297,7]
[328828080,1717849843222,-3370.54509378,0.000297,7]
[328828081,1717849843232,-3370.54509378,0.000297,7]
[328828082,1717849843242,-151.0,0.000297,7]
[328828083,1717849843252,-970.91987,0.000297,7]
[328828084,1717849843262,-151.0,0.000297,7]
[328828085,1717849843273,-5905.06477136,0.000297,2]
[328828086,1717849843284,-970.91987,0.000297,7]
[328828087,1717849843294,-970.91987,0.000297,7]
[328828088,1717849843304,-454.81981614,0.000297,7]
[328828089,1717849843314,-970.91987,0.000297,7]
[328828090,1717849843325,-454.81981614,0.000297,7]
[328828091,1717849843335,-454.81981614,0.000297,7]
[328828092,1717849843345,-454.81981614,0.000297,7]
[328828093,1717849843355,-454.81981614,0.000297,7]
[328828094,1717849843366,-454.81981614,0.000297,7]
[328828095,1717849843376,-454.81981614,0.000297,7]
[328828096,1717849843387,-454.81981614,0.000297,7]
[328828097,1717849843397,-454.81981614,0.000297,7]
[328828098,1717849843407,-454.81981614,0.000297,7]
[328828099,1717849843418,-454.81981614,0.000297,7]
[328828100,1717849843429,-454.81981614,0.000297,7]
[328828101,1717849843439,-151.0,0.000297,7]
[328828102,1717849843450,-454.81981614,0.000297,7]
[328828103,1717849843461,-151.0,0.000297,7]
[328828104,1717849843471,-454.81981614,0.000297,7]
[328828105,1717849843481,-454.81981614,0.000297,7]
[328828106,1717849843490,-454.81981614,0.000297,7]
[328828107,1717849843500,-454.81981614,0.000297,7]
[328828108,1717849843510,-454.81981614,0.000297,7]
[328828109,1717849843522,-454.81981614,0.000297,7]
[328828110,1717849843534,-455.31,0.000297,7]
[328828111,1717849843544,-1819.35426455,0.000297,7]
[328828116,1717849843556,-1819.35426455,0.000297,7]
[328828117,1717849843742,-151.0,0.000297,7]
[328828118,1717849843752,-1819.35426455,0.000297,7]
[328828119,1717849843761,-1819.35426455,0.000297,7]
[328828120,1717849843771,-1819.35426455,0.000297,7]
[328828121,1717849843781,-151.0,0.000297,7]
[328828122,1717849843791,-1819.35426455,0.000297,7]
[328828123,1717849843800,-1819.35426455,0.000297,7]
[328828124,1717849843811,-1819.35426455,0.000297,7]
[328828125,1717849843821,-1819.35426455,0.000297,7]
[328828126,1717849843831,-1819.35426455,0.000297,7]
[328828127,1717849843841,-1819.35426455,0.000297,7]
[328828128,1717849843851,-1819.35426455,0.000297,7]
[328828129,1717849843867,-1819.35426455,0.000297,7]
[328828130,1717849843877,-1819.35426455,0.000297,7]
[328828131,1717849843886,-1819.35426455,0.000297,7]
[328828132,1717849843895,-1819.35426455,0.000297,7]
[328828133,1717849843906,-1819.35426455,0.000297,7]
[328828134,1717849843915,-1819.35426455,0.000297,7]
[328828135,1717849843925,-1819.35426455,0.000297,7]
[328828136,1717849843935,-151.0,0.000297,7]
[328828137,1717849843948,-151.0,0.000297,7]
[328828138,1717849843958,-300.116929,0.000297,7]
[328828139,1717849843969,-151.0,0.000297,7]
[328828140,1717849843980,-151.0,0.000297,7]
[328828141,1717849843990,-151.0,0.000297,7]
[328828142,1717849844000,-151.0,0.000297,7]
[328828143,1717849844012,-151.0,0.000297,7]
[328828144,1717849844024,-151.0,0.000297,7]
[328828145,1717849844036,-151.0,0.000297,7]
[328828146,1717849844047,-151.0,0.000297,7]
[328828147,1717849844057,-161.704066,0.000297,7]
[328828148,1717849844066,-733.90914635,0.000297,2]
[328828149,1717849844076,-3435.59720396,0.00029718,2]
[328828150,1717849844085,-171.1391301,0.00029756,2]
[328828151,1717849844096,-159.64,0.0002976,15]
[328828152,1717849844107,-150.5,0.0002976,15]
[328828153,1717849844117,-150.5,0.0002976,15]
[328828154,1717849844127,-1516.04908027,0.00029763,15]
[328828155,1717849844137,-150.5,0.0002977,15]
[328828156,1717849844147,-150.5,0.0002977,15]
[328828157,1717849844159,-150.5,0.0002977,15]
[328828158,1717849844169,-235.0,0.0002977,15]
[328828159,1717849844180,-3003.59,0.00029778,2]
[328828160,1717849844189,-150.5,0.0002978,15]
[328828161,1717849844200,-150.5,0.0002978,15]
[328828162,1717849844210,-150.5,0.0002978,15]
[328828163,1717849844220,-150.5,0.0002978,15]
[328828164,1717849844231,-4069.0,0.00029781,4]
[328828165,1717849844241,-1196.75422504,0.00029783,2]
[328828166,1717849844250,-15319.42994273,0.00029786,31]
[328828167,1717849844260,-1196.75422504,0.00029787,2]
[328828168,1717849844270,-662.22180085,0.00029788,2]
[328828169,1717849844279,-463.69165335,0.00029788,2]
[328828170,1717849844289,-7538.65976902,0.00029788,2]
[328828171,1717849844298,-207.83722464,0.00029788,2]
[328828172,1717849844308,-150.0,0.00029789,10]
[328828173,1717849844318,-150.0,0.00029789,10]
[328828174,1717849844328,-150.0,0.00029789,10]
[328828175,1717849844337,-1009.32521493,0.00029789,15]
[328828176,1717849844347,-544.55,0.00029789,4]
[328828177,1717849844357,-544.55,0.00029789,4]
[328828178,1717849844367,-544.55,0.00029789,4]
[328828179,1717849844377,-544.55,0.00029789,4]
[328828180,1717849844387,-544.55,0.00029789,4]
[328828181,1717849844397,-839.38,0.00029789,4]
[328828182,1717849844406,-839.38,0.00029789,4]
[328828183,1717849844418,-839.38,0.00029789,4]
[328828184,1717849844429,-839.38,0.00029789,4]
[328828185,1717849844438,-839.38,0.00029789,4]
[328828186,1717849844448,-195607.91214621,0.0002979,13]
[328828187,1717849844459,-44006.42433851,0.0002979,5]
[328828188,1717849844474,-514.00387467,0.0002979,5]
[328828189,1717849844510,-328.39001,0.00024798,2]
[328828190,1717849844526,-2584.92003195,0.00024798,2]
[328828191,1717849844539,-11998.3864551,0.00024798,2]
[328828192,1717849844548,-254.60930081,0.00028279,2]
[328828193,1717849844558,-15511.56484289,0.0002979,5]
[328828194,1717849845861,-348.06164598,0.00015,2]
[328828196,1717849845873,-208.87102398,0.0002959,2]
[328828198,1717849845883,-163.02531763,0.0002959,2]
[328828201,1717849846433,-560.52287682,0.0001366,2]
[328828202,1717849846490,-638.0611641,0.0001366,2]
[328828203,1717849846555,-1213.24704208,0.0001366,2]
[328828216,1717850044619,3006.54994521,0.000118,2]
[328828220,1717850342450,1371.74,0.0001356,30]
[328828224,1717850811146,-469.11199208,0.00013212,2]
[328828225,1717850831118,-1128.86090292,0.00013212,2]
[328828226,1717850831144,-2630.55249259,0.00013278,2]
[328828227,1717850950125,-150.0,0.00013276,2]
[328828228,1717850950147,-8418.92102661,0.00013277,2]
[328828229,1717850950169,-7149.50274906,0.00013278,2]
[328828230,1717850960118,-185.18873139,0.00013278,2]
[328828231,1717850971128,-843.12872197,0.00013278,2]
[328828243,1717851035582,-10535.96438958,0.00013559,2]
[328828244,1717851035592,-254.60930081,0.0001356,2]
[328828245,1717851035603,-262.52303666,0.0001356,2]
[328828246,1717851035612,-155.0,0.0001356,2]
[328828247,1717851035622,-347.51456549,0.0001356,2]
[328828248,1717851035632,-827.2583,0.0001356,2]
[328828249,1717851035642,-367.46104775,0.0001365,2]
[328828250,1717851035652,-459.82,0.00013658,2]
[328828251,1717851035663,-1000.0,0.00013659,2]
[328828252,1717851035673,-2221.0968,0.0001366,2]
[328828253,1717851035684,-527.56267155,0.0001366,2]
[328828254,1717851035720,-10397.32872845,0.0001366,2]
[328828255,1717851035730,-10493.84665201,0.0001366,2]
[328828256,1717851035740,-78912.3608,0.0001366,2]
[328828257,1717851035751,-500.0,0.0001366,2]
[328828258,1717851035760,-300.0,0.000138,5]
[328828259,1717851035770,-556.0592,0.000139,2]
[328828260,1717851035780,-4094.349,0.000139,2]
[328828261,1717851035790,-185.70566311,0.000139,2]
[328828262,1717851035801,-194.13632051,0.000139,2]
[328828263,1717851035811,-700.0,0.000139,5]
[328828264,1717851035822,-999.99,0.000139,2]
[328828265,1717851035832,-371.68409,0.000139,2]
[328828266,1717851035843,-320.34921699,0.000139,2]
[328828267,1717851035855,-174.21222849,0.000139,2]
[328828268,1717851035866,-943.4595,0.000139,2]
[328828269,1717851035876,-151.61,0.0001399,2]
[328828270,1717851035886,-151.61,0.0001399,2]
[328828271,1717851035896,-176.59235858,0.0001399,2]
[328828272,1717851035907,-1218.39220414,0.00013998,2]
[328828273,1717851035918,-3100.04,0.00013998,2]
[328828274,1717851035927,-499.99,0.00013998,2]
[328828275,1717851035938,-1681.13083338,0.00013998,2]
[328828276,1717851035948,-155.0,0.00013999,2]
[328828277,1717851035958,-1067.04191087,0.00013999,2]
[328828278,1717851035969,-65534.03593041,0.00014,2]
[328828279,1717851035983,-1913.12,0.00014,2]
[328828303,1717851038073,-399.35972132,0.00014,2]
[328828304,1717851038085,-1481.5710016,0.00014,2]
[328828305,1717851038375,-0.00804205,0.00014,2]
[328828489,1717851041608,-10691.87041694,0.00014,2]
[328828490,1717851042697,-1130.54686907,0.00014,2]
[328828491,1717851042841,-481.34579474,0.000139,2]
[328828492,1717851042851,-1514.90308726,0.00014,2]
[328828493,1717851042863,-930.0,0.00014,2]
[328828494,1717851042875,-689.99,0.00014,2]
[328828507,1717851043062,-655.16092701,0.00014,2]
[328828523,1717851043181,-701.33067573,0.00014,2]
[328828525,1717851043194,-2492.56313245,0.00014,2]
[328828533,1717851043289,-204804.80986287,0.00014,2]
[328828534,1717851043376,-4201.31112761,0.00014,2]
[328828535,1717851043388,-4764.44253311,0.00014,2]
[328828536,1717851043400,-302.00096324,0.00014,2]
[328828537,1717851043455,-10798.46106714,0.00014,2]